bitfinex-derivatives/quotes_BTCF0:USTF0_20250614
["timestamp","ask_amount","ask_price","bid_price","bid_amount"]
[1749939918571,0.5759172,105530.0,105520.0,1.87781517]
[1749939920275,0.15376105,105530.0,105520.0,1.87781517]
[1749939920474,0.08896105,105530.0,105520.0,1.90791517]
[1749939926478,0.08896105,105530.0,105520.0,1.70579372]
[1749939926679,0.08896105,105530.0,105520.0,1.90791517]
[1749939935587,0.08896105,105530.0,105520.0,0.74967372]
[1749939935888,0.08896105,105530.0,105520.0,1.90759517]
[1749939937086,0.27839575,105530.0,105520.0,0.95179517]
[1749939937291,0.3857825,105530.0,105520.0,1.87745517]
[1749939939290,0.3556825,105530.0,105520.0,1.87745517]
[1749939939490,0.15356105,105530.0,105520.0,1.91015517]
[1749939940492,0.12126105,105530.0,105520.0,1.91015517]
[1749939941590,0.08896105,105530.0,105520.0,1.91015517]
[1749939943290,0.08896105,105530.0,105520.0,1.13551517]
[1749939943492,0.08896105,105530.0,105520.0,1.91011517]
[1749939943699,0.08896105,105530.0,105520.0,1.96902757]
[1749939945390,0.63557955,105550.0,105540.0,0.1894167]
[1749939945696,0.4881,105550.0,105540.0,0.97482606]
[1749939945894,0.4881,105550.0,105540.0,1.03782606]
[1749939946096,0.4881,105550.0,105540.0,1.07002606]
[1749939946491,0.86146956,105560.0,105550.0,0.1893988]
[1749939946685,0.17037615,105560.0,105550.0,0.79432072]
[1749939946887,0.5618784,105560.0,105550.0,0.65659927]
[1749939947087,0.5618784,105560.0,105550.0,0.85872072]
[1749939947291,0.5618784,105560.0,105550.0,0.86814274]
[1749939947788,0.5618784,105560.0,105550.0,0.85872072]
[1749939949691,0.9226784,105560.0,105550.0,0.23139927]
[1749939949893,1.4485344,105560.0,105550.0,0.04200047]
[1749939950294,0.1893987,105550.0,105540.0,0.2841111]
[1749939950495,0.81452015,105550.0,105540.0,0.32607924]
[1749939950888,0.99564015,105550.0,105540.0,0.32607924]
[1749939952089,0.99564015,105550.0,105540.0,0.2841111]
[1749939953195,0.97313598,105550.0,105540.0,0.2841111]
[1749939959888,0.97313598,105550.0,105540.0,0.1894073]
[1749939961400,1.74733598,105550.0,105540.0,0.1894073]
[1749939964498,1.86580714,105550.0,105540.0,0.1894073]
[1749939966503,1.74733598,105550.0,105540.0,0.1894073]
[1749939968506,0.1894168,105540.0,105530.0,0.69243115]
[1749939968704,0.37304201,105540.0,105530.0,0.73445549]
[1749939970198,0.91345929,105540.0,105530.0,0.37365549]
[1749939970891,0.91345929,105540.0,105530.0,0.33163115]
[1749939971097,0.55265929,105540.0,105530.0,0.33163115]
[1749939971403,0.91345929,105540.0,105530.0,0.33163115]
[1749939972607,0.91345929,105540.0,105530.0,0.37373665]
[1749939973604,1.86865929,105540.0,105530.0,0.37373665]
[1749939975406,1.89114559,105540.0,105530.0,0.37373665]
[1749939979003,1.53034559,105540.0,105530.0,0.37373665]
[1749939980208,1.89114559,105540.0,105530.0,0.37373665]
[1749939981914,2.12299512,105540.0,105530.0,0.00014255]
[1749939982105,2.27047467,105540.0,105530.0,0.00014255]
[1749939982305,2.15200351,105540.0,105530.0,0.00014255]
[1749939982708,2.27035553,105540.0,105530.0,0.00014255]
[1749939983214,2.04584294,105540.0,105530.0,0.00014255]
[1749939983509,1.92749092,105540.0,105530.0,0.00014255]
[1749939983714,2.14057169,105540.0,105530.0,0.00014255]
[1749939984112,2.04581969,105540.0,105530.0,0.00014255]
[1749939984308,2.02224292,105540.0,105530.0,0.00014255]
[1749939984710,0.1894525,105520.0,105510.0,0.40061791]
[1749939984910,1.77379313,105520.0,105510.0,0.41013092]
[1749939985206,1.87069313,105520.0,105510.0,0.41013092]
[1749939985810,1.87069313,105520.0,105510.0,0.36831791]
[1749939986815,1.87069313,105520.0,105510.0,0.3496902]
[1749939987218,1.83759313,105520.0,105510.0,0.3496902]
[1749939987413,1.65789856,105520.0,105510.0,0.3496902]
[1749939987723,0.70277856,105520.0,105510.0,0.3496902]
[1749939987919,1.65773856,105520.0,105510.0,0.3829902]
[1749939988422,1.60343804,105520.0,105510.0,0.3829902]
[1749939988715,1.59401856,105520.0,105510.0,0.3829902]
[1749939989715,1.23321856,105520.0,105510.0,0.3829902]
[1749939990023,1.5052925,105520.0,105510.0,0.3829902]
[1749939990224,0.5502525,105520.0,105510.0,0.3829902]
[1749939990518,1.1444525,105520.0,105510.0,0.3829902]
[1749939990717,1.05605203,105530.0,105520.0,0.1894526]
[1749939990918,2.01105203,105530.0,105520.0,0.2522526]
[1749939991213,0.78105746,105530.0,105520.0,0.2522526]
[1749939991420,0.37289496,105530.0,105520.0,0.50682866]
[1749939991621,1.32789496,105530.0,105520.0,0.50682866]
[1749939992222,1.32793496,105530.0,105520.0,0.50682866]
[1749939992524,1.32793496,105530.0,105520.0,0.32713409]
[1749939992724,1.32789496,105530.0,105520.0,0.32713409]
[1749939993025,0.37289496,105530.0,105520.0,0.32713409]
[1749939993213,1.32789496,105530.0,105520.0,0.32713409]
[1749939993417,1.3371599,105530.0,105520.0,0.32713409]
[1749939993725,0.37289496,105530.0,105520.0,0.32713409]
[1749939993917,1.32789496,105530.0,105520.0,0.32713409]
[1749939994319,0.37289496,105530.0,105520.0,0.32713409]
[1749939994519,0.08872606,105530.0,105520.0,0.68793409]
[1749939994716,1.23316076,105530.0,105520.0,0.68793409]
[1749939995224,0.27816076,105530.0,105520.0,0.68793409]
[1749939995424,0.08872606,105530.0,105520.0,0.82584717]
[1749939995624,1.64131266,105540.0,105530.0,0.1894347]
[1749939995828,0.73366736,105540.0,105530.0,0.46362927]
[1749939996122,1.32786736,105540.0,105530.0,0.46362927]
[1749939996313,1.32786736,105540.0,105530.0,0.2839347]
[1749939996626,1.33728307,105540.0,105530.0,0.2839347]
[1749939996930,0.38228307,105540.0,105530.0,0.2839347]
[1749939997124,0.37286736,105540.0,105530.0,0.2839347]
[1749939997324,1.32782736,105540.0,105530.0,0.2839347]
[1749940001130,1.33725159,105540.0,105530.0,0.2839347]
[1749940001432,1.32782736,105540.0,105530.0,0.2839347]
[1749940002132,1.32782736,105540.0,105530.0,0.3257099]
[1749940003926,1.50752193,105540.0,105530.0,0.3257099]
[1749940004126,1.57162193,105540.0,105530.0,0.2939099]
[1749940004430,1.60232193,105540.0,105530.0,0.2939099]
[1749940005132,1.60232193,105540.0,105530.0,0.2312099]
[1749940005333,1.96312193,105540.0,105530.0,0.2312099]
[1749940005537,1.97279881,105540.0,105530.0,0.2312099]
[1749940010235,1.79310424,105540.0,105530.0,0.2312099]
[1749940010429,1.97279881,105540.0,105530.0,0.2312099]
[1749940011437,1.79310424,105540.0,105530.0,0.2312099]
[1749940011636,1.97279881,105540.0,105530.0,0.2312099]
[1749940017746,1.61199881,105540.0,105530.0,0.2312099]
[1749940019347,1.63440387,105540.0,105530.0,0.2312099]
[1749940022839,0.67944387,105540.0,105530.0,0.2312099]
[1749940023038,1.60326387,105540.0,105530.0,0.43330953]
[1749940023242,1.60326387,105540.0,105530.0,0.49660953]
[1749940023650,1.60326387,105540.0,105530.0,0.45483433]
[1749940023851,0.64874387,105540.0,105530.0,0.45483433]
[1749940024152,1.60322387,105540.0,105530.0,0.45483433]
[1749940024951,1.51449781,105540.0,105530.0,0.45483433]
[1749940025153,1.54779781,105540.0,105530.0,0.45483433]
[1749940025652,1.66609922,105540.0,105530.0,0.29458719]
[1749940028850,0.89229922,105540.0,105530.0,0.29458719]
[1749940029048,1.66605922,105540.0,105530.0,0.29458719]
[1749940030059,0.67831922,105540.0,105530.0,0.29458719]
[1749940030247,0.81672234,105540.0,105530.0,0.29458719]
[1749940030450,0.60454234,105540.0,105530.0,0.52708682]
[1749940030654,1.55894234,105540.0,105530.0,0.52708682]
[1749940031857,1.55894234,105540.0,105530.0,0.32498719]
[1749940032059,1.55894234,105540.0,105530.0,0.52708682]
[1749940035268,0.30773331,105540.0,105530.0,0.52708682]
[1749940035458,0.11830141,105540.0,105530.0,0.88788682]
[1749940040473,0.32560195,105550.0,105540.0,0.1894167]
[1749940040771,0.32560195,105550.0,105540.0,0.88856882]
[1749940041169,0.32560195,105550.0,105540.0,1.06924882]
[1749940041563,0.32560195,105550.0,105540.0,1.02739633]
[1749940041764,0.32560195,105550.0,105540.0,1.03689259]
[1749940042372,0.32560195,105550.0,105540.0,1.07863979]
[1749940043477,0.52770158,105550.0,105540.0,1.07863979]
[1749940045276,0.32560195,105550.0,105540.0,1.07813979]
[1749940046576,0.27825225,105550.0,105540.0,1.07813979]
[1749940046874,0.27825225,105550.0,105540.0,1.03639259]
[1749940047276,0.27825225,105550.0,105540.0,0.85571259]
[1749940047476,0.27825225,105550.0,105540.0,1.02669633]
[1749940048477,0.48035188,105550.0,105540.0,1.02669633]
[1749940048980,0.48035188,105550.0,105540.0,0.84621633]
[1749940049178,0.48035188,105550.0,105540.0,1.02669633]
[1749940054680,0.51135188,105550.0,105540.0,1.02669633]
[1749940055780,0.51135188,105550.0,105540.0,1.06846602]
[1749940056475,0.08885205,105550.0,105540.0,1.06846602]
[1749940056682,0.27825105,105550.0,105540.0,1.06846602]
[1749940058172,0.48035068,105550.0,105540.0,1.06846602]
[1749940058986,0.48035068,105550.0,105540.0,1.07812212]
[1749940059680,0.29095168,105550.0,105540.0,1.07812212]
[1749940060183,0.48035058,105550.0,105540.0,1.07812212]
[1749940060384,0.08885205,105550.0,105540.0,1.07812212]
[1749940061182,0.27825105,105550.0,105540.0,1.07812212]
[1749940061478,0.08885205,105550.0,105540.0,1.2988321]
[1749940062079,0.08885205,105550.0,105540.0,0.29345861]
[1749940062080,0.39164118,105550.0,105540.0,0.29345861]
[1749940062384,0.57455068,105550.0,105540.0,0.24929674]
[1749940063084,0.75503068,105550.0,105540.0,0.24929674]
[1749940063587,0.66632118,105550.0,105540.0,0.24929674]
[1749940063784,1.02712118,105550.0,105540.0,0.24929674]
[1749940063990,1.02712118,105550.0,105540.0,0.23118659]
[1749940064284,0.1894169,105540.0,105530.0,0.18956275]
[1749940064482,1.13700193,105540.0,105530.0,0.18956275]
[1749940066080,1.91024193,105540.0,105530.0,0.18956275]
[1749940070589,1.7081423,105540.0,105530.0,0.18956275]
[1749940073594,1.7410423,105540.0,105530.0,0.18956275]
[1749940074591,1.82970065,105540.0,105530.0,0.18956275]
[1749940078597,1.71131488,105540.0,105530.0,0.18956275]
[1749940085300,0.54655835,105540.0,105530.0,0.39166238]
[1749940085499,1.43361478,105540.0,105530.0,0.75246238]
[1749940085703,1.24419798,105540.0,105530.0,0.84696238]
[1749940085905,1.43361488,105540.0,105530.0,0.84696238]
[1749940086794,1.24419798,105540.0,105530.0,0.84696238]
[1749940087904,1.43361488,105540.0,105530.0,0.84696238]
[1749940090407,1.24415798,105540.0,105530.0,0.84696238]
[1749940090604,1.43357478,105540.0,105530.0,0.88835855]
[1749940093407,1.55196055,105540.0,105530.0,0.88835855]
[1749940094210,0.59856055,105540.0,105530.0,0.88835855]
[1749940094412,1.55192055,105540.0,105530.0,0.88835855]
[1749940094606,1.55192055,105540.0,105530.0,0.68625892]
[1749940096407,1.58462055,105540.0,105530.0,0.68625892]
[1749940096602,1.46623478,105540.0,105530.0,0.68625892]
[1749940097107,1.4959622,105540.0,105530.0,0.64486275]
[1749940099212,1.4959622,105540.0,105530.0,0.68628035]
[1749940100314,1.5266622,105540.0,105530.0,0.68628035]
[1749940100510,1.5266622,105540.0,105530.0,0.65478035]
[1749940100708,1.9195622,105540.0,105530.0,0.29398035]
[1749940100904,1.9195622,105540.0,105530.0,0.25256275]
[1749940101920,1.5587622,105540.0,105530.0,0.25256275]
[1749940102607,1.5587622,105540.0,105530.0,0.29398423]
[1749940103408,1.5587622,105540.0,105530.0,0.29398414]
[1749940106019,1.9195622,105540.0,105530.0,0.29398414]
[1749940106220,1.5587622,105540.0,105530.0,0.25256275]
[1749940106927,1.44037643,105540.0,105530.0,0.29398993]
[1749940107128,1.5587622,105540.0,105530.0,0.29398993]
[1749940107328,1.9195622,105540.0,105530.0,0.29398993]
[1749940107519,1.5587622,105540.0,105530.0,0.29398993]
[1749940108127,1.44037643,105540.0,105530.0,0.29398993]
[1749940109027,1.5587622,105540.0,105530.0,0.29398993]
[1749940112730,1.5587622,105540.0,105530.0,0.26288993]
[1749940112930,1.5587622,105540.0,105530.0,0.23098993]
[1749940118737,0.6054022,105540.0,105530.0,0.23098993]
[1749940118936,1.5583222,105540.0,105530.0,0.23098993]
[1749940131442,2.12122183,105540.0,105530.0,0.23098993]
[1749940134341,1.71702257,105540.0,105530.0,0.23098993]
[1749940134652,2.12102183,105540.0,105530.0,0.23098993]
[1749940136542,1.16830183,105540.0,105530.0,0.23098993]
[1749940136752,2.12102183,105540.0,105530.0,0.23098993]
[1749940137047,1.76022183,105540.0,105530.0,0.23098993]
[1749940137444,1.5581222,105540.0,105530.0,0.23098993]
[1749940137646,1.9189222,105540.0,105530.0,0.23098993]
[1749940137849,1.5581222,105540.0,105530.0,0.23098993]
[1749940138949,1.9189222,105540.0,105530.0,0.23098993]
[1749940139643,0.9662022,105540.0,105530.0,0.23098993]
[1749940139850,1.9186822,105540.0,105530.0,0.23098993]
[1749940141545,1.9186822,105540.0,105530.0,0.18956275]
[1749940142240,2.12078183,105540.0,105530.0,0.18956275]
[1749940146853,1.9186822,105540.0,105530.0,0.18956275]
[1749940150451,1.9185622,105540.0,105530.0,0.18956275]
[1749940150758,1.9185622,105540.0,105530.0,0.25306275]
[1749940151457,0.9662022,105540.0,105530.0,0.25306275]
[1749940151656,1.9185622,105540.0,105530.0,0.25306275]
[1749940155261,0.9662022,105540.0,105530.0,0.25306275]
[1749940155450,1.4622222,105540.0,105530.0,0.49656853]
[1749940155655,1.4622222,105540.0,105530.0,0.52656853]
[1749940156858,1.4622222,105540.0,105530.0,0.3244689]
[1749940157458,1.8544222,105540.0,105530.0,0.3244689]
[1749940158557,1.8866222,105540.0,105530.0,0.3244689]
[1749940160959,0.9343022,105540.0,105530.0,0.3244689]
[1749940161162,1.8229422,105540.0,105530.0,0.3244689]
[1749940161854,0.8707022,105540.0,105530.0,0.3244689]
[1749940162058,1.8229422,105540.0,105530.0,0.3244689]
[1749940165662,0.8707022,105540.0,105530.0,0.3244689]
[1749940165863,1.2726454,105540.0,105530.0,0.52656853]
[1749940166071,1.34369023,105540.0,105530.0,0.52656853]
[1749940166661,1.15425963,105540.0,105530.0,0.52656853]
[1749940166962,1.34369013,105540.0,105530.0,0.52656853]
[1749940168866,1.34369013,105540.0,105530.0,0.3244689]
[1749940169066,1.34369013,105540.0,105530.0,0.52656853]
[1749940169266,1.34369013,105540.0,105530.0,0.48516238]
[1749940169467,1.34369013,105540.0,105530.0,0.52656902]
[1749940169761,1.34369013,105540.0,105530.0,0.32446939]
[1749940169954,1.70449013,105540.0,105530.0,0.32446939]
[1749940170667,1.73709013,105540.0,105530.0,0.32446939]
[1749940171060,1.73709013,105540.0,105530.0,0.29446939]
[1749940171263,1.80189013,105540.0,105530.0,0.29446939]
[1749940172074,1.9202759,105540.0,105530.0,0.29446939]
[1749940173169,1.9202759,105540.0,105530.0,0.23096939]
[1749940174962,0.9681159,105540.0,105530.0,0.23096939]
[1749940175163,1.9199559,105540.0,105530.0,0.23096939]
[1749940183776,2.12205553,105540.0,105530.0,0.23096939]
[1749940186980,2.12205553,105540.0,105530.0,0.18956275]
[1749940187883,2.12205553,105540.0,105530.0,0.23097258]
[1749940191783,1.17021553,105540.0,105530.0,0.23097258]
[1749940191981,2.12181553,105540.0,105530.0,0.23097258]
[1749940207494,1.9197159,105540.0,105530.0,0.23097258]
[1749940214500,1.5589159,105540.0,105530.0,0.23097258]
[1749940215202,1.9197159,105540.0,105530.0,0.23097258]
[1749940215799,2.12181553,105540.0,105530.0,0.23097258]
[1749940237916,1.17021553,105540.0,105530.0,0.04155238]
[1749940238218,1.17021553,105540.0,105520.0,0.2368124]
[1749940238219,0.1894486,105530.0,105520.0,0.2368124]
[1749940238417,0.96423168,105530.0,105520.0,0.2368124]
[1749940240318,0.1894665,105520.0,105510.0,0.39422195]
[1749940240522,1.77240633,105520.0,105510.0,0.43526542]
[1749940240723,1.97450596,105520.0,105510.0,0.39422195]
[1749940241521,1.98387335,105520.0,105510.0,0.39422195]
[1749940241719,1.8653899,105520.0,105510.0,0.43524961]
[1749940242108,1.8653899,105520.0,105510.0,0.39422195]
[1749940242308,1.8653899,105520.0,105510.0,0.43524945]
[1749940242713,1.8653899,105520.0,105510.0,0.39422195]
[1749940243115,1.8653899,105520.0,105510.0,0.28435155]
[1749940243418,0.1894845,105510.0,105500.0,0.2368646]
[1749940243628,1.24254186,105510.0,105500.0,0.2368646]
[1749940244225,1.16696721,105510.0,105500.0,0.2368646]
[1749940244414,0.76276795,105510.0,105500.0,0.2378646]
[1749940244611,1.16696721,105510.0,105500.0,0.2378646]
[1749940244815,1.16696721,105510.0,105500.0,0.2398646]
[1749940245622,1.13711295,105510.0,105500.0,0.2398646]
[1749940245823,1.13711295,105510.0,105500.0,0.2388646]
[1749940246025,1.13711295,105510.0,105500.0,0.2368646]
[1749940247020,0.1895025,105500.0,105490.0,0.42648555]
[1749940247219,1.70316213,105500.0,105490.0,0.29902695]
[1749940247430,1.88589132,105500.0,105490.0,0.00014255]
[1749940247613,1.88589132,105500.0,105490.0,0.18966295]
[1749940248224,1.88589132,105500.0,105490.0,0.00314255]
[1749940249618,0.1895384,105480.0,105470.0,0.394208]
[1749940249820,1.90541766,105480.0,105470.0,0.394208]
[1749940250114,1.73371803,105480.0,105470.0,0.394208]
[1749940250728,1.73371803,105480.0,105470.0,0.398208]
[1749940251024,1.73371803,105480.0,105470.0,0.403208]
[1749940252125,1.5316184,105480.0,105470.0,0.403208]
[1749940252327,1.73371803,105480.0,105470.0,0.403208]
[1749940252828,1.74298836,105480.0,105470.0,0.403208]
[1749940254227,1.94508799,105480.0,105470.0,0.340708]
[1749940254525,2.00678799,105480.0,105470.0,0.340708]
[1749940255229,2.00678799,105480.0,105470.0,0.2933197]
[1749940256733,2.00678799,105480.0,105470.0,0.2459314]
[1749940257229,2.00678799,105480.0,105470.0,0.1985435]
[1749940259132,2.00678799,105480.0,105470.0,0.009]
[1749940259330,2.00678799,105480.0,105470.0,0.1985564]
[1749940260733,2.00678799,105480.0,105470.0,0.009]
[1749940260933,2.00678799,105480.0,105470.0,0.1985563]
[1749940262337,2.00678799,105480.0,105470.0,0.009]
[1749940262833,2.00678799,105480.0,105470.0,0.1985563]
[1749940263531,2.00678799,105480.0,105470.0,0.1945563]
[1749940263839,2.00678799,105480.0,105470.0,0.001]
[1749940264130,2.00678799,105480.0,105470.0,0.002]
[1749940264434,0.1895563,105470.0,105460.0,0.00014255]
[1749940264732,0.1895923,105450.0,105440.0,0.2843978]
[1749940264934,1.8621123,105450.0,105440.0,0.3483978]
[1749940265125,2.26631156,105450.0,105440.0,0.3483978]
[1749940265933,1.90551156,105450.0,105440.0,0.3483978]
[1749940266228,2.26831156,105450.0,105440.0,0.300996]
[1749940266433,2.26831156,105450.0,105440.0,0.236996]
[1749940266634,2.32911156,105450.0,105440.0,0.236996]
[1749940266935,1.2049923,105450.0,105440.0,0.236996]
[1749940267134,0.67582235,105460.0,105450.0,0.1895923]
[1749940267436,1.84274397,105460.0,105450.0,0.2207923]
[1749940267634,1.87354397,105460.0,105450.0,0.2207923]
[1749940268429,1.69362235,105460.0,105450.0,0.2207923]
[1749940269836,1.69762235,105460.0,105450.0,0.2207923]
[1749940271633,0.74262235,105460.0,105440.0,0.1422009]
[1749940271839,0.79641392,105450.0,105440.0,0.3317945]
[1749940272138,1.78343392,105450.0,105440.0,0.3317945]
[1749940272734,0.82891392,105450.0,105440.0,0.3317945]
[1749940272933,1.78343392,105450.0,105440.0,0.3642945]
[1749940273133,1.78343392,105450.0,105440.0,0.3973945]
[1749940273734,1.78443392,105450.0,105440.0,0.3973945]
[1749940274238,1.78511392,105450.0,105440.0,0.3973945]
[1749940274436,1.86010786,105450.0,105440.0,0.3973945]
[1749940275238,0.1896103,105440.0,105430.0,0.00014255]
[1749940275434,0.72939918,105440.0,105430.0,0.00014255]
[1749940275734,0.1896283,105430.0,105420.0,0.0637]
[1749940275934,0.82048177,105430.0,105420.0,0.0637]
[1749940276138,0.82048177,105430.0,105420.0,0.2533462]
[1749940276344,0.76144992,105430.0,105420.0,0.2533462]
[1749940276537,0.76144992,105430.0,105420.0,0.0637]
[1749940276538,0.79034992,105430.0,105420.0,0.0637]
[1749940277033,0.79034992,105430.0,105420.0,0.2533462]
[1749940277239,0.6184283,105430.0,105420.0,0.2533462]
[1749940277542,1.75332992,105430.0,105420.0,0.2533462]
[1749940277742,1.5423083,105430.0,105420.0,0.2533462]
[1749940278042,1.72222992,105430.0,105420.0,0.2533462]
[1749940280942,1.73150891,105430.0,105420.0,0.2533462]
[1749940281947,1.55158729,105430.0,105420.0,0.2533462]
[1749940282146,1.73150891,105430.0,105420.0,0.2533462]
[1749940282334,1.55158729,105430.0,105420.0,0.2533462]
[1749940282539,1.73150891,105430.0,105420.0,0.2533462]
[1749940282839,1.76230891,105430.0,105420.0,0.2533462]
[1749940284344,1.79380891,105430.0,105420.0,0.2533462]
[1749940284942,0.62800729,105430.0,105420.0,0.2533462]
[1749940285146,1.62364729,105430.0,105420.0,0.2533462]
[1749940285350,1.80356891,105430.0,105420.0,0.2533462]
[1749940285842,0.62800729,105430.0,105420.0,0.2533462]
[1749940286044,1.5526283,105430.0,105420.0,0.2533462]
[1749940286237,1.5526283,105430.0,105420.0,0.2853462]
[1749940286441,1.73254992,105430.0,105420.0,0.2853462]
[1749940287346,0.005,105430.0,105420.0,0.46526782]
[1749940287546,0.008,105430.0,105420.0,0.70604661]
[1749940287748,0.008,105430.0,105420.0,0.52612499]
[1749940287953,0.008,105430.0,105420.0,0.70604661]
[1749940288245,0.37754992,105430.0,105420.0,0.32740499]
[1749940288546,0.1976283,105430.0,105420.0,0.32740499]
[1749940288950,0.1936283,105430.0,105420.0,0.32740499]
[1749940289153,0.1966283,105430.0,105420.0,0.32740499]
[1749940289851,0.1956283,105430.0,105420.0,0.32740499]
[1749940290053,0.1936283,105430.0,105420.0,0.32740499]
[1749940293442,0.1936283,105430.0,105420.0,0.37155429]
[1749940293848,0.5544283,105430.0,105420.0,0.37155429]
[1749940294048,0.5544283,105430.0,105420.0,0.32740499]
[1749940294251,0.5544283,105430.0,105420.0,0.37155429]
[1749940297257,0.5544283,105430.0,105420.0,0.32740499]
[1749940301047,0.004,105430.0,105420.0,0.50732661]
[1749940301357,0.004,105430.0,105420.0,0.55147591]
[1749940301860,0.004,105430.0,105420.0,0.91227591]
[1749940303263,0.004,105430.0,105420.0,0.98068017]
[1749940304157,0.004,105430.0,105420.0,0.80075855]
[1749940304362,0.002,105430.0,105420.0,0.98068017]
[1749940305360,0.6452164,105440.0,105430.0,0.1896282]
[1749940305663,0.6452164,105440.0,105430.0,0.32698699]
[1749940306465,0.6472164,105440.0,105430.0,0.32698699]
[1749940308159,0.6492164,105440.0,105430.0,0.32698699]
[1749940311760,0.3648,105440.0,105430.0,0.32698699]
[1749940311954,0.004,105440.0,105430.0,1.11057791]
[1749940312558,0.004,105440.0,105430.0,1.11471626]
[1749940314260,0.004,105440.0,105430.0,2.01352426]
[1749940314457,0.08862977,105460.0,105450.0,0.1895923]
[1749940314656,0.08862977,105460.0,105450.0,0.79072007]
[1749940314866,0.27820407,105460.0,105450.0,1.03364169]
[1749940315269,0.18971685,105460.0,105450.0,1.03364169]
[1749940315862,0.20071685,105460.0,105450.0,0.85372007]
[1749940316264,0.19471685,105460.0,105450.0,0.85372007]
[1749940316467,0.19371685,105460.0,105450.0,0.85372007]
[1749940316676,0.19671685,105460.0,105450.0,0.85372007]
[1749940319873,0.19671685,105460.0,105450.0,0.85367002]
[1749940320265,0.19671685,105460.0,105450.0,0.65495002]
[1749940320466,0.19671685,105460.0,105450.0,0.85063002]
[1749940321072,0.19671685,105460.0,105450.0,0.29415002]
[1749940321273,0.77033847,105460.0,105450.0,0.48983002]
[1749940321469,0.62081685,105460.0,105450.0,0.48983002]
[1749940321673,0.80073847,105460.0,105450.0,0.48983002]
[1749940322574,0.62081685,105460.0,105450.0,0.48983002]
[1749940324674,0.62081685,105460.0,105450.0,0.42683002]
[1749940325065,0.62081685,105460.0,105450.0,0.23115002]
[1749940325265,0.80073847,105460.0,105450.0,0.1895923]
[1749940325465,0.80073847,105460.0,105440.0,9.504e-05]
[1749940325466,0.1895923,105450.0,105440.0,9.504e-05]
[1749940325783,1.02229392,105450.0,105440.0,0.18970524]
[1749940327070,1.18652263,105450.0,105440.0,0.18970524]
[1749940327279,1.18752263,105450.0,105440.0,0.18970524]
[1749940327772,1.18852263,105450.0,105440.0,0.18970524]
[1749940329568,1.00860101,105450.0,105440.0,0.18970524]
[1749940329768,1.18852263,105450.0,105440.0,0.18970524]
[1749940332881,1.30700608,105450.0,105440.0,0.18970524]
[1749940333075,1.21851886,105450.0,105440.0,0.18970524]
[1749940335480,1.03859724,105450.0,105440.0,0.18970524]
[1749940335674,1.21851886,105450.0,105440.0,0.18970524]
[1749940337080,1.18879416,105450.0,105440.0,0.18970524]
[1749940343080,0.99311416,105450.0,105440.0,0.18970524]
[1749940343288,1.80603254,105450.0,105440.0,0.18970524]
[1749940344094,0.81319254,105450.0,105440.0,0.18970524]
[1749940344296,1.80563254,105450.0,105440.0,0.25410524]
[1749940344796,1.98555416,105450.0,105440.0,0.25410524]
[1749940352095,1.98555416,105450.0,105440.0,0.29592884]
[1749940353101,1.89679541,105450.0,105440.0,0.29592884]
[1749940354490,1.71687379,105450.0,105440.0,0.29592884]
[1749940354693,1.89679541,105450.0,105440.0,0.29592884]
[1749940355193,2.01527886,105450.0,105440.0,0.29592884]
[1749940355700,2.00847886,105450.0,105440.0,0.29592884]
[1749940363907,1.94437886,105450.0,105440.0,0.29592884]
[1749940366608,1.97467886,105450.0,105440.0,0.29592884]
[1749940369313,0.98730494,105450.0,105440.0,0.83665046]
[1749940369515,0.95774272,105450.0,105440.0,0.91129601]
[1749940369716,0.95742272,105450.0,105440.0,0.91129601]
[1749940370009,1.14701502,105450.0,105440.0,0.91129601]
[1749940370216,0.16666272,105450.0,105440.0,0.91129601]
[1749940370407,0.09092123,105450.0,105440.0,0.91129601]
[1749940374420,0.002,105450.0,105440.0,0.91129601]
[1749940374819,0.002,105450.0,105440.0,0.73137439]
[1749940375019,0.09092123,105450.0,105440.0,0.73137439]
[1749940375221,0.002,105450.0,105440.0,0.91129601]
[1749940377418,0.002,105450.0,105440.0,0.73137439]
[1749940381227,0.002,105450.0,105440.0,0.91129601]
[1749940383126,0.002,105450.0,105440.0,1.00613601]
[1749940383429,0.002,105450.0,105440.0,1.10925313]
[1749940383928,0.002,105450.0,105440.0,1.18441323]
[1749940384224,0.002,105450.0,105440.0,1.08957323]
[1749940384417,0.002,105450.0,105440.0,2.00401323]
[1749940384825,0.001,105450.0,105440.0,2.022782]
[1749940386025,0.00014255,105460.0,105450.0,0.1895923]
[1749940386227,0.00014255,105460.0,105450.0,1.89118233]
[1749940387221,0.00114255,105460.0,105450.0,1.89118233]
[1749940387414,0.00214255,105460.0,105450.0,1.89118233]
[1749940387814,0.00214255,105460.0,105450.0,1.90046789]
[1749940388617,0.00214255,105460.0,105450.0,1.72054627]
[1749940388822,0.00214255,105460.0,105450.0,0.93166627]
[1749940389022,0.00214255,105460.0,105450.0,1.71046071]
[1749940389422,0.00214255,105460.0,105450.0,1.72013431]
[1749940389728,0.00214255,105460.0,105450.0,1.71046071]
[1749940389929,0.37163847,105460.0,105450.0,0.27568071]
[1749940390130,0.46783847,105460.0,105450.0,0.27568071]
[1749940390327,0.46783847,105460.0,105450.0,0.46448071]
[1749940390629,0.46783847,105460.0,105450.0,0.4202159]
[1749940392932,0.28791685,105460.0,105450.0,0.4202159]
[1749940394226,0.28791685,105460.0,105450.0,0.46448071]
[1749940394832,0.2920552,105460.0,105450.0,0.46448071]
[1749940395335,0.1024809,105460.0,105450.0,0.46448071]
[1749940395534,0.2920552,105460.0,105450.0,0.46448071]
[1749940395735,0.28791685,105460.0,105450.0,0.46448071]
[1749940396235,0.28791685,105460.0,105450.0,0.27568071]
[1749940396434,0.28791685,105460.0,105450.0,0.46448071]
[1749940396636,0.46783847,105460.0,105450.0,0.27568071]
[1749940396835,0.46783847,105460.0,105450.0,0.4202159]
[1749940397233,0.82863847,105460.0,105450.0,0.2314159]
[1749940397439,0.9175597,105460.0,105450.0,0.2314159]
[1749940398741,1.1063597,105460.0,105450.0,0.2314159]
[1749940399043,1.1063597,105460.0,105450.0,0.1895923]
[1749940399234,1.01743847,105460.0,105450.0,0.1895923]
[1749940399542,1.80419847,105460.0,105450.0,0.1895923]
[1749940400146,1.92268192,105460.0,105450.0,0.1895923]
[1749940400342,1.7427603,105460.0,105450.0,0.1895923]
[1749940400544,1.92268192,105460.0,105450.0,0.1895923]
[1749940400743,1.89297334,105460.0,105450.0,0.1895923]
[1749940402046,1.80419847,105460.0,105450.0,0.1895923]
[1749940402845,1.89296209,105460.0,105450.0,0.1895923]
[1749940408550,1.71304047,105460.0,105450.0,0.1895923]
[1749940408752,1.89296209,105460.0,105450.0,0.1895923]
[1749940410852,0.91740209,105460.0,105450.0,0.1895923]
[1749940411054,1.88792209,105460.0,105450.0,0.1895923]
[1749940417156,1.79915847,105460.0,105450.0,0.1895923]
[1749940417457,1.82165199,105460.0,105450.0,0.1895923]
[1749940419961,1.84547648,105460.0,105450.0,0.1895923]
[1749940420164,1.84547648,105460.0,105450.0,0.2865923]
[1749940421762,1.84547648,105460.0,105450.0,0.32820279]
[1749940422556,1.84547648,105460.0,105450.0,0.32820428]